bitfinex/quotes_ETHUSD_20260120
["timestamp","ask_amount","ask_price","bid_price","bid_amount"]
[1768908710570,0.532,3108.4,3108.0,16.11405071]
[1768908710751,0.001,3108.5,3108.0,16.11405071]
[1768908710951,0.001,3109.0,3108.6,12.89658195]
[1768908711970,0.532,3108.9,3108.8,12.89658195]
[1768908712353,12.96578226,3109.2,3108.8,12.89658195]
[1768908712555,12.96578226,3109.4,3108.8,12.89658195]
[1768908712758,0.532,3109.3,3108.8,12.89658195]
[1768908712944,0.532,3109.3,3108.8,14.82961327]
[1768908714375,12.35936825,3109.3,3108.8,14.82961327]
[1768908714975,12.35936825,3109.3,3108.8,18.04626081]
[1768908715477,11.82736825,3109.3,3108.8,18.04626081]
[1768908715645,0.531,3109.2,3108.8,18.04626081]
[1768908716643,0.531,3109.2,3108.9,1.53691755]
[1768908717473,0.531,3109.2,3108.9,14.35984397]
[1768908717983,12.35836825,3109.2,3108.8,14.75595774]
[1768908718159,12.35836825,3109.2,3108.8,12.82292642]
[1768908718480,12.35836825,3109.2,3108.5,12.82292642]
[1768908718882,12.35836825,3109.2,3108.6,16.03980859]
[1768908719243,12.35836825,3109.2,3108.7,12.82292642]
[1768908721182,12.35836825,3109.2,3108.3,0.002]
[1768908721476,11.82736825,3108.8,3108.4,1.60421897]
[1768908721679,12.35836825,3108.7,3108.4,1.60421897]
[1768908722485,12.35836825,3108.7,3108.3,0.002]
[1768908723751,12.35836825,3108.7,3108.3,12.82492642]
[1768908724049,0.531,3108.7,3108.3,12.82492642]
[1768908725787,0.001,3108.9,3108.4,12.82292642]
[1768908726486,0.531,3108.9,3108.4,12.82292642]
[1768908726781,11.82736825,3109.3,3108.6,12.82292642]
[1768908726974,0.531,3109.0,3108.6,12.82292642]
[1768908727172,11.82836825,3109.5,3108.6,12.82292642]
[1768908727375,0.531,3109.4,3108.9,12.82292642]
[1768908727789,0.531,3109.4,3109.1,12.82292642]
[1768908728087,0.531,3109.4,3109.1,14.74851972]
[1768908729188,0.001,3109.5,3109.1,14.74851972]
[1768908729767,0.532,3109.5,3109.1,14.74851972]
[1768908730383,0.532,3109.5,3109.2,12.82292642]
[1768908730591,0.001,3109.5,3109.2,12.82292642]
[1768908730762,0.001,3109.5,3109.2,13.83561555]
[1768908733476,0.001,3109.5,3109.2,1.01268913]
[1768908733477,11.82836825,3109.5,3109.2,1.01268913]
[1768908733785,11.82836825,3109.5,3109.1,3.21632853]
[1768908734986,0.001,3109.2,3109.1,3.21632853]
[1768908735187,11.82836825,3109.5,3109.0,16.03934615]
[1768908738505,0.001,3109.5,3109.1,12.82292642]
[1768908739505,0.001,3109.5,3109.2,12.82292642]
[1768908739712,0.001,3109.5,3109.3,1.60392799]
[1768908741626,11.82736825,3109.8,3109.4,12.82292642]
[1768908741779,0.531,3109.9,3109.4,12.82292642]
[1768908742799,0.531,3110.1,3109.4,12.82292642]
[1768908743111,12.35836825,3110.2,3109.4,12.82292642]
[1768908743312,12.35836825,3110.2,3109.6,12.7506019]
[1768908744188,11.82736825,3110.2,3109.7,12.7506019]
[1768908744390,0.531,3110.2,3109.7,12.7506019]
[1768908745217,12.56729543,3110.3,3109.7,12.7506019]
[1768908746312,12.56729543,3110.3,3109.8,12.7506019]
[1768908747187,0.001,3109.9,3109.8,12.7506019]
[1768908747387,0.001,3109.9,3109.7,12.7506019]
[1768908747619,0.001,3109.9,3109.6,12.7526019]
[1768908747804,0.001,3109.9,3109.7,3.21572976]
[1768908748024,0.001,3109.9,3109.7,15.96633166]
[1768908748940,0.001,3109.9,3109.8,12.7506019]
[1768908749110,12.56629543,3110.3,3109.8,12.7506019]
[1768908751132,12.56629543,3110.3,3109.8,15.96617459]
[1768908751336,12.03529543,3110.3,3109.9,12.7506019]
[1768908751541,12.56629543,3110.3,3109.9,12.7506019]
[1768908751736,12.03529543,3110.3,3109.9,12.7506019]
[1768908752042,12.56629543,3110.3,3109.9,12.7506019]
[1768908752403,9.39342838,3111.1,3109.9,12.7506019]
[1768908752404,12.03529543,3110.7,3109.9,12.7506019]
[1768908752642,12.56629543,3110.6,3109.9,12.7506019]
[1768908753212,12.56629543,3110.6,3110.1,12.7506019]
[1768908753812,12.03529543,3110.6,3110.1,12.7506019]
[1768908755941,12.03529543,3110.6,3110.1,15.96592648]
[1768908756129,0.531,3110.8,3110.2,14.34719455]
[1768908756333,12.03529543,3110.8,3110.2,12.7506019]
[1768908758045,12.03529543,3110.8,3110.0,3.21537873]
[1768908758530,12.03529543,3110.8,3110.1,3.21532588]
[1768908759713,12.03529543,3110.8,3110.0,3.21543408]
[1768908760544,0.002,3110.3,3110.0,3.21543408]
[1768908760741,0.002,3110.3,3110.1,1.97125573]
[1768908760940,12.03729543,3110.3,3109.9,0.531]
[1768908761146,12.03729543,3110.3,3109.9,3.74653464]
[1768908762613,0.002,3110.6,3110.0,12.7506019]
[1768908763921,0.002,3110.6,3110.1,3.21533069]
[1768908764116,0.002,3110.6,3110.2,13.77970263]
[1768908766047,0.002,3110.6,3110.2,12.18310937]
[1768908767149,0.002,3110.6,3110.2,15.39833214]
[1768908767455,12.80433466,3110.6,3110.2,12.18310937]
[1768908767949,12.80433466,3110.6,3110.2,15.39831445]
[1768908768151,0.002,3110.6,3110.2,12.18310937]
[1768908768352,0.002,3110.6,3110.2,14.04448969]
[1768908768647,0.002,3110.6,3110.3,12.18310937]
[1768908770235,0.002,3110.6,3110.4,12.18310937]
[1768908772252,0.002,3110.6,3110.5,12.18310937]
[1768908772761,13.33333466,3111.1,3110.5,12.18310937]
[1768908774138,0.002,3110.6,3110.5,12.18310937]
[1768908774544,0.002,3110.6,3110.5,15.39802658]
[1768908775379,13.33333466,3111.1,3110.6,12.9176132]
[1768908775380,12.64049684,3111.1,3110.6,12.9176132]
[1768908775528,13.17149684,3111.1,3110.6,12.9176132]
[1768908776426,13.17149684,3111.1,3110.6,16.13235744]
[1768908776627,12.64049684,3111.1,3110.6,18.06708491]
[1768908777150,12.42772062,3111.2,3110.7,12.9176132]
[1768908779336,12.42772062,3111.2,3110.5,12.9176132]
[1768908780366,12.42772062,3111.2,3110.5,16.1325204]
[1768908781366,12.42772062,3111.2,3110.5,12.9176132]
[1768908782563,12.42772062,3111.2,3110.5,14.5308723]
[1768908783166,11.89672062,3111.1,3110.5,1.6132591]
[1768908783338,3.74521878,3111.2,3109.9,12.9176132]
[1768908783339,11.89672062,3110.9,3109.9,12.9176132]
[1768908783541,11.89672062,3110.6,3109.6,0.002]
[1768908783728,11.89672062,3110.5,3109.6,0.002]
[1768908783935,11.89672062,3110.3,3109.6,0.002]
[1768908784134,12.95650092,3110.3,3109.6,0.002]
[1768908785678,11.89672062,3110.2,3109.6,0.002]
[1768908787253,9.74092771,3110.3,3108.5,12.9176132]
[1768908787254,5.4660138,3109.7,3108.5,12.9176132]
[1768908787478,5.4660138,3109.7,3108.0,0.002]
[1768908787479,11.89672062,3109.2,3108.3,12.9196132]
[1768908787643,11.89672062,3109.0,3108.3,12.9196132]
[1768908788356,11.89672062,3109.0,3108.4,12.9176132]
[1768908788560,11.89672062,3109.0,3108.6,1.29396132]
[1768908789048,5.4660138,3108.9,3108.3,0.002]
[1768908789248,11.89672062,3108.8,3108.3,0.002]
[1768908789569,11.89672062,3108.6,3108.3,0.002]
[1768908790477,11.89672062,3108.6,3108.0,12.9196132]
[1768908790677,11.89672062,3108.6,3108.0,0.002]
[1768908791181,11.89672062,3108.6,3108.0,12.9196132]
[1768908791378,11.89672062,3108.6,3108.0,14.21177452]
[1768908791879,12.42772062,3108.5,3108.0,14.21177452]
[1768908798158,12.42772062,3108.5,3108.0,0.002]
[1768908798889,12.42772062,3108.5,3108.0,5.94e-06]
[1768908799989,12.42772062,3108.5,3107.9,0.002]
[1768908799990,11.89672062,3108.4,3107.9,0.002]
[1768908803683,11.89672062,3108.4,3107.9,12.60303493]
[1768908804100,0.531,3108.3,3107.9,12.60303493]
[1768908809581,3.21649278,3109.0,3107.9,12.60303493]
[1768908809582,2.1250826,3109.3,3108.0,12.60103493]
[1768908809770,2.1250826,3109.1,3108.1,12.60103493]
[1768908810605,2.1250826,3108.7,3108.0,0.532]
[1768908810804,2.1250826,3108.7,3108.0,13.13303493]
[1768908811007,2.1250826,3108.7,3108.1,1.47171197]
[1768908811304,2.1250826,3108.7,3108.0,13.13303493]
[1768908811606,2.1250826,3108.7,3108.0,12.60103493]
[1768908812013,2.1250826,3108.7,3108.1,12.60103493]
[1768908812305,0.531,3108.7,3108.1,12.60103493]
[1768908813410,2.1250826,3109.1,3108.1,12.60103493]
[1768908813582,0.531,3109.2,3108.5,12.60103493]
[1768908813908,2.6560826,3109.2,3108.5,12.60103493]
[1768908814407,2.1250826,3108.9,3108.2,14.50463818]
[1768908814610,2.1250826,3108.9,3108.1,13.13303493]
[1768908815011,2.1250826,3108.7,3108.1,12.60103493]
[1768908818901,2.1250826,3108.7,3108.2,12.60103493]
[1768908819096,0.531,3108.8,3108.2,12.60103493]
[1768908819298,0.531,3108.8,3108.1,3.21737314]
[1768908819299,0.531,3108.8,3108.4,12.60103493]
[1768908820088,0.531,3108.9,3108.4,12.60103493]
[1768908822484,0.531,3108.9,3108.4,12.60303493]
[1768908822920,0.001,3108.5,3108.4,12.60303493]
[1768908823318,0.001,3108.5,3108.4,15.8201241]
[1768908823513,0.001,3108.5,3108.4,17.88204808]
[1768908823713,0.001,3108.5,3108.4,14.66495891]
[1768908827297,0.001,3108.5,3108.4,12.60303493]
[1768908827722,0.001,3108.5,3108.4,0.002]
[1768908836111,0.001,3108.5,3108.0,0.002]
[1768908836112,7.23630205,3108.5,3108.0,0.002]
[1768908836318,7.23630205,3108.5,3107.9,0.002]
[1768908836620,7.95993226,3108.5,3107.9,0.002]
[1768908842547,3.94167251,3108.5,3107.9,0.002]
[1768908842723,7.23332205,3108.4,3107.6,12.14336708]
[1768908842924,7.23332205,3108.3,3107.6,12.14336708]
[1768908843516,0.532,3108.2,3107.6,12.14336708]
[1768908843722,7.23332205,3108.1,3107.6,0.002]
[1768908845938,8.00985426,3108.1,3107.6,0.002]
[1768908847742,8.00985426,3108.1,3107.6,12.14336708]
[1768908847944,7.23332205,3108.1,3107.6,12.14336708]
[1768908848462,7.76532205,3108.2,3107.9,0.002]
[1768908849829,7.76532205,3108.2,3107.7,12.14136708]
[1768908851645,0.532,3108.2,3107.7,12.14136708]
[1768908852254,7.76532205,3108.2,3107.7,12.14136708]
[1768908854967,7.76532205,3108.2,3107.6,12.14336708]
[1768908855134,8.86356505,3108.2,3107.6,12.14336708]
[1768908857246,7.76532205,3108.2,3107.6,12.14336708]
[1768908859365,0.532,3108.2,3107.6,12.14336708]
[1768908859963,7.76532205,3108.2,3107.6,12.14336708]
[1768908860162,7.76532205,3108.2,3107.9,0.002]
[1768908866051,0.532,3108.2,3107.9,11.84047432]
[1768908866677,7.23332205,3108.3,3107.9,11.84047432]
[1768908866851,0.532,3108.3,3107.9,11.84047432]
[1768908869581,0.001,3108.5,3108.0,11.83847432]
[1768908870059,7.23432205,3108.5,3108.0,11.83847432]
[1768908870260,7.23432205,3108.5,3107.9,0.002]
[1768908870674,7.23432205,3108.5,3107.6,0.002]
[1768908870675,7.23332205,3108.3,3107.6,11.84047432]
[1768908872787,0.001,3108.0,3107.6,11.84047432]
[1768908877396,7.23432205,3108.0,3107.6,11.84047432]
[1768908877896,0.001,3108.0,3107.6,11.84047432]
[1768908884492,0.001,3108.0,3107.9,0.002]
[1768908884682,0.001,3108.0,3107.6,11.84047432]
[1768908885798,0.001,3108.0,3107.7,12.6963274]
[1768908895691,0.001,3108.0,3107.7,15.91413658]
[1768908896023,0.001,3108.0,3107.7,12.6963274]
[1768908902946,7.23432205,3108.0,3107.6,0.002]
[1768908908132,0.001,3108.0,3107.6,12.26947457]
[1768908908338,0.001,3108.0,3107.6,13.83543951]
[1768908908727,0.001,3108.0,3107.9,0.002]
[1768908911725,7.23432205,3108.0,3107.9,0.002]
[1768908912053,7.23432205,3108.0,3107.6,0.002]
[1768908916576,0.001,3108.0,3107.6,12.26947457]
[1768908920062,7.23531205,3108.5,3107.7,12.26747457]
[1768908920356,7.23531205,3108.5,3107.9,12.26947457]
[1768908927063,0.532,3108.4,3107.9,12.26947457]
[1768908927366,0.001,3108.5,3108.0,12.82981047]
[1768908927531,0.001,3108.5,3108.2,12.82981047]
[1768908928760,7.23431205,3109.1,3108.2,12.82981047]
[1768908928932,0.532,3109.0,3108.2,12.82981047]
[1768908929133,0.532,3109.0,3108.3,12.82981047]
[1768908930836,0.532,3109.2,3108.3,12.82981047]
[1768908931057,0.532,3109.2,3108.5,12.82981047]
[1768908931677,0.532,3109.2,3108.6,12.82981047]
[1768908932939,7.23530205,3109.5,3108.6,12.82981047]
[1768908933143,0.532,3109.3,3108.6,12.82981047]
[1768908933343,0.532,3109.3,3108.5,3.2169645]
[1768908933344,7.76730205,3109.3,3108.8,12.82981047]
[1768908934678,7.76730205,3109.3,3108.4,2.45843826]
[1768908934679,7.76730205,3109.3,3108.5,12.82981047]
[1768908935684,7.76730205,3109.3,3108.6,12.82981047]
[1768908940793,0.532,3109.3,3108.7,12.82981047]
[1768908941175,7.23530205,3109.4,3108.7,12.82981047]
[1768908941489,0.531,3109.2,3108.7,12.82981047]
[1768908941666,0.531,3109.2,3108.7,14.43447409]
[1768908942563,0.531,3109.4,3108.8,12.82981047]
[1768908943461,0.001,3109.0,3108.8,12.82981047]
[1768908945999,0.001,3109.0,3108.9,12.65426399]
[1768908947090,0.531,3109.5,3108.9,12.65426399]
[1768908947473,7.95249071,3109.7,3108.9,12.65426399]
[1768908947660,0.531,3109.6,3108.9,14.40182306]
[1768908948085,7.76729205,3109.6,3108.9,14.40182306]
[1768908948273,7.76729205,3109.6,3108.9,12.65426399]
[1768908949781,7.76729205,3109.6,3108.6,12.65426399]
[1768908950001,7.23629205,3109.5,3108.6,12.65426399]
[1768908950894,7.23629205,3109.5,3108.4,13.18626399]
[1768908951467,7.23629205,3109.5,3108.4,12.65426399]
[1768908951669,7.23629205,3109.3,3108.4,14.56313317]
[1768908951869,7.23629205,3109.1,3108.4,14.56313317]
[1768908952585,7.76729205,3109.1,3108.4,5.12594273]
[1768908952898,7.76729205,3109.1,3108.5,12.65426399]
[1768908955808,7.76729205,3109.1,3108.8,0.002]
[1768908956010,7.76729205,3109.1,3108.5,12.65426399]
[1768908956302,7.76729205,3109.1,3108.5,12.65626399]
[1768908957607,7.76729205,3109.1,3108.5,0.002]
[1768908957912,7.23629205,3109.0,3108.5,0.002]
[1768908959806,7.23629205,3109.0,3108.5,11.7774801]
[1768908960874,0.531,3108.9,3108.5,11.7774801]
[1768908961510,7.76729205,3108.9,3108.5,11.7774801]
[1768908961706,7.76729205,3108.9,3108.5,0.002]
[1768908961931,7.23629205,3108.7,3107.9,11.7774801]
[1768908962999,7.24024618,3108.6,3107.9,11.7774801]
[1768908963197,7.24024618,3108.4,3107.9,11.7774801]
[1768908965411,7.77124618,3108.5,3107.9,11.7774801]
[1768908965616,7.24024618,3108.7,3108.0,11.7754801]
[1768908965821,0.531,3108.6,3108.1,11.7754801]
[1768908968397,0.531,3108.6,3108.0,3.21750041]
[1768908968398,0.531,3108.6,3108.3,0.002]
[1768908969797,7.77124618,3108.6,3108.3,0.002]
[1768908970031,7.77124618,3108.6,3108.0,11.7774801]
[1768908970032,7.24024618,3108.4,3108.0,0.002]
[1768908970535,7.77124618,3108.4,3108.0,0.002]
[1768908971696,7.77124618,3108.4,3107.9,0.002]
[1768908973099,7.77124618,3108.4,3107.6,11.7774801]
[1768908974009,7.77124618,3108.4,3107.7,11.7754801]
[1768908974223,7.24024618,3108.7,3107.7,12.2795278]
[1768908974400,0.532,3108.5,3107.7,12.2795278]
[1768908975013,7.77224618,3108.5,3107.7,12.2795278]
[1768908975213,7.77224618,3108.5,3107.7,11.7754801]
[1768908980538,7.77224618,3108.5,3108.0,0.002]
[1768908981949,7.23826618,3108.4,3107.6,0.002]
[1768908982626,7.23826618,3108.4,3107.6,11.7774801]
[1768908983657,0.77702662,3108.3,3107.6,11.7774801]
[1768908983862,0.532,3108.2,3107.6,11.7774801]
[1768908985126,7.77026618,3108.2,3107.6,11.7774801]
[1768908991936,3.21794641,3108.6,3107.6,11.7774801]
[1768908991937,7.23826618,3108.4,3107.6,11.7774801]
[1768908992140,0.532,3108.3,3107.6,11.7774801]
[1768908992455,0.532,3108.3,3107.9,0.002]
[1768908992755,0.001,3108.2,3107.9,12.98196121]
[1768908992921,0.533,3108.2,3107.9,12.98196121]
[1768908993946,0.001,3108.2,3107.9,12.98196121]
[1768908994864,0.001,3108.2,3107.9,0.002]
[1768908995171,7.23926618,3108.2,3107.7,12.97996121]
[1768908995326,8.0153928,3108.1,3107.5,12.98196121]
[1768908996060,8.0153928,3108.1,3107.3,0.002]
[1768908996840,8.0153928,3108.1,3107.3,12.98196121]
[1768908999766,7.23826618,3108.0,3107.3,12.98196121]
[1768908999966,7.77026618,3107.9,3107.3,12.98196121]
[1768909000168,8.94674551,3107.9,3107.3,12.98196121]
[1768909000976,7.23826618,3107.8,3107.2,0.002]
[1768909001180,7.23826618,3107.8,3107.1,12.97996121]
[1768909001974,0.532,3107.7,3107.1,16.19835696]
[1768909002255,7.23826618,3108.1,3107.2,12.97996121]
[1768909002461,0.532,3108.0,3107.2,12.97996121]
[1768909003078,7.77026618,3108.0,3107.2,12.97996121]
[1768909005281,7.23826618,3107.9,3107.2,12.97996121]
[1768909005481,7.23826618,3107.7,3107.1,12.94819245]
[1768909006167,7.23826618,3107.7,3107.5,0.002]
[1768909006375,7.23826618,3107.7,3107.1,12.94819245]
[1768909006865,7.23826618,3107.7,3107.1,12.95019245]
[1768909008153,0.532,3107.6,3107.1,12.95019245]
[1768909008467,1.63089974,3107.6,3107.1,12.95019245]
[1768909008671,8.86916592,3107.6,3107.1,12.95019245]
[1768909011985,8.86916592,3107.6,3107.1,0.002]
[1768909013682,8.86916592,3107.6,3107.1,12.71706878]
[1768909015672,8.86916592,3107.6,3107.1,12.48526271]
[1768909015977,8.67447327,3107.5,3107.0,0.002]
[1768909016760,8.67447327,3107.5,3107.0,12.71706878]
[1768909018180,0.001,3107.8,3107.0,12.71706878]
[1768909018386,0.532,3107.7,3107.0,12.71706878]
[1768909018885,8.41719054,3107.7,3107.0,12.71706878]
[1768909020689,7.88519054,3107.6,3107.0,12.71706878]
[1768909021457,7.88519054,3107.6,3107.0,0.002]
[1768909021677,7.88519054,3107.4,3106.8,0.002]
[1768909021878,7.88519054,3107.2,3106.8,0.002]
[1768909022069,7.88519054,3107.2,3106.7,0.002]
[1768909022268,7.88519054,3107.2,3106.6,0.002]
[1768909022475,7.88519054,3107.2,3106.5,12.71706878]
[1768909022691,8.96606836,3107.1,3106.5,12.4536543]
[1768909022874,12.1845419,3107.1,3106.5,12.4536543]
[1768909023212,8.14399087,3107.0,3106.4,0.002]
[1768909023493,8.14992108,3106.8,3106.1,12.70907867]
[1768909023662,8.14992108,3106.6,3106.1,12.70907867]
[1768909023866,8.14992108,3106.6,3106.1,12.68923872]
[1768909024082,0.532,3106.5,3106.1,12.68923872]
[1768909024563,0.84171905,3107.1,3106.1,12.68923872]
[1768909024763,0.532,3107.0,3106.4,12.71506878]
[1768909025067,0.532,3106.9,3106.4,12.71506878]
[1768909025288,8.16956263,3107.3,3106.4,12.71506878]
[1768909025289,0.532,3107.0,3106.4,12.71506878]
[1768909025764,8.16956263,3107.3,3106.4,12.71506878]
[1768909025984,0.532,3107.1,3106.4,12.71506878]
[1768909026187,0.532,3107.1,3106.4,14.53375157]
[1768909028988,8.70156263,3107.1,3106.4,14.53375157]
[1768909029188,8.70156263,3107.1,3106.4,12.71506878]
[1768909029688,0.001,3107.0,3106.4,12.71506878]
[1768909030709,8.17056263,3107.0,3106.4,12.71506878]
[1768909033710,8.17056263,3107.0,3106.4,12.70577381]
[1768909034405,0.532,3106.9,3106.4,12.70577381]
[1768909041504,0.532,3106.9,3106.5,12.71506878]
[1768909042221,8.17876465,3107.5,3106.5,14.30849684]
[1768909042714,0.001,3107.8,3106.7,12.71506878]
[1768909042905,0.532,3107.7,3106.7,12.71506878]
[1768909043207,0.532,3107.6,3106.7,12.71506878]
[1768909043502,8.71175465,3107.6,3106.7,14.69350339]
[1768909043701,8.71175465,3107.6,3106.7,12.71506878]
[1768909046881,8.17975465,3107.5,3106.7,12.71506878]
[1768909048987,8.17975465,3107.4,3106.5,12.76239397]
[1768909050696,8.17975465,3107.3,3106.5,12.76239397]
[1768909050896,8.71175465,3107.2,3106.5,12.76239397]
[1768909051096,9.90474538,3107.2,3106.5,12.76239397]
[1768909051517,1.72499073,3107.2,3106.5,12.76239397]
[1768909052059,1.19299073,3107.2,3106.6,12.76239397]
[1768909052193,0.532,3107.1,3106.6,12.76239397]
[1768909053502,0.532,3107.1,3106.7,12.76439397]
[1768909054726,8.71175465,3107.1,3106.7,0.002]
[1768909055087,8.71175465,3107.1,3106.5,12.76239397]
[1768909055423,8.17975465,3106.9,3106.4,12.76439397]
[1768909056119,0.87127546,3107.0,3106.4,12.76439397]
[1768909056326,0.532,3107.0,3106.4,12.76439397]
[1768909057523,0.001,3107.2,3106.4,12.76439397]
[1768909057741,0.532,3106.9,3106.4,12.76439397]
[1768909057922,0.001,3107.2,3106.4,12.76439397]
[1768909058116,0.532,3107.1,3106.5,12.76239397]
[1768909059520,0.001,3107.2,3106.5,12.76239397]
[1768909059825,0.532,3107.1,3106.5,12.76239397]
[1768909060629,8.17975465,3107.7,3106.8,12.76239397]
[1768909060801,0.532,3107.6,3106.8,12.76239397]
[1768909062531,8.71175465,3107.6,3106.8,12.76239397]
[1768909062730,0.532,3107.5,3106.8,12.76239397]
[1768909062934,0.532,3107.5,3107.0,11.98468872]
[1768909066849,0.001,3107.2,3107.0,11.98468872]
[1768909075943,0.001,3107.8,3107.1,12.07844227]
[1768909076136,0.532,3107.7,3107.1,12.07844227]
[1768909076335,0.532,3107.7,3107.3,12.07844227]
[1768909080331,8.71274465,3107.7,3106.9,3.21862129]
[1768909080657,8.71274465,3107.7,3107.1,12.07844227]
[1768909081723,8.18074465,3107.6,3106.8,12.07844227]
[1768909083849,8.18074465,3107.5,3106.8,12.07844227]
[1768909084045,9.92139896,3107.5,3106.8,12.07844227]
[1768909089673,9.92139896,3107.5,3107.1,0.002]
[1768909089872,9.92139896,3107.5,3107.0,12.07844227]
[1768909090076,0.001,3107.2,3107.0,12.07844227]
[1768909091367,0.001,3107.2,3106.8,0.002]
[1768909091368,0.001,3107.2,3106.8,12.08044227]
[1768909092156,0.001,3107.2,3106.8,0.002]
[1768909092157,8.18174465,3107.2,3106.8,0.002]
[1768909092474,9.05311912,3107.2,3106.8,0.002]
[1768909092656,9.05311912,3107.2,3106.5,12.07844227]
[1768909099377,0.532,3107.1,3106.5,12.07844227]
[1768909101052,8.71274465,3107.1,3106.5,12.07844227]
[1768909102453,8.71274465,3107.1,3106.8,0.002]
[1768909102652,0.95851191,3107.0,3106.6,12.07844227]
[1768909102848,8.71274465,3107.1,3106.6,12.07844227]
[1768909104781,8.71274465,3107.1,3106.5,12.16157361]
[1768909108516,8.18074465,3107.1,3106.5,12.16157361]
[1768909108687,8.71274465,3107.0,3106.5,12.16157361]
[1768909109404,8.71274465,3107.0,3106.5,0.002]
[1768909109714,8.18074465,3106.8,3106.5,0.002]
[1768909109918,8.71274465,3107.0,3106.4,12.16157361]
[1768909110318,0.532,3107.0,3106.4,12.16157361]
[1768909112993,8.71274465,3107.0,3106.4,12.16157361]
[1768909113307,9.99309523,3107.0,3106.4,12.16157361]
[1768909114205,9.99309523,3107.0,3106.4,0.002]
[1768909115080,9.99309523,3107.0,3106.7,0.002]
[1768909115279,9.99309523,3107.0,3106.4,0.002]
[1768909115799,9.99309523,3107.0,3106.4,12.16157361]
[1768909116001,0.001,3106.8,3106.4,12.16157361]
[1768909116302,8.18174465,3106.8,3106.4,0.002]
[1768909116504,0.89998192,3106.7,3106.4,0.002]
[1768909116677,0.08180745,3106.7,3106.4,0.002]
[1768909117103,0.08180745,3106.7,3106.2,12.15957361]
[1768909121007,0.001,3106.8,3106.2,12.15957361]
[1768909121810,8.18174465,3106.8,3106.2,12.15957361]
[1768909127731,0.001,3106.5,3106.2,12.15957361]
[1768909127905,0.001,3106.5,3106.2,13.6976849]
[1768909128818,0.001,3106.5,3106.2,1.53811129]
[1768909128998,0.001,3106.5,3106.1,12.80733776]
[1768909139236,0.001,3106.5,3106.4,0.002]
[1768909139439,0.001,3106.5,3106.2,12.61828908]
[1768909142423,8.18174465,3106.5,3106.0,12.62028908]
[1768909142814,0.001,3106.5,3106.0,12.62028908]
[1768909143036,0.001,3106.8,3106.3,12.61828908]
[1768909143332,0.001,3107.2,3106.3,12.61828908]
[1768909143702,8.18273465,3107.2,3106.3,12.61828908]
[1768909143906,8.18173465,3107.1,3106.3,13.15028908]
[1768909144160,9.86946071,3107.1,3106.3,12.61828908]
[1768909144332,9.86946071,3107.1,3106.0,1.63967963]
[1768909144333,8.18173465,3106.9,3106.1,13.15028908]
[1768909146319,8.18173465,3106.8,3106.1,12.61828908]
[1768909147254,8.18173465,3106.6,3105.9,0.002]
[1768909147418,8.18173465,3106.3,3105.8,0.0028004]
[1768909149019,0.532,3106.2,3105.8,12.62108948]
[1768909149548,8.18173465,3106.4,3105.8,12.62108948]
[1768909149549,0.532,3106.3,3105.8,12.62108948]
[1768909149741,8.18173465,3106.4,3105.8,12.62108948]
[1768909149945,8.18173465,3106.7,3105.8,12.62108948]
[1768909150147,9.85378747,3106.6,3105.8,12.62108948]
[1768909150958,9.85478747,3106.6,3105.8,12.62108948]
[1768909151651,8.18173465,3106.5,3105.8,12.62108948]
[1768909152660,8.18173465,3106.3,3105.8,12.62108948]
[1768909152863,8.71373465,3106.4,3105.8,12.62108948]
[1768909153051,9.6992134,3106.4,3105.8,12.62108948]
[1768909153631,0.532,3106.4,3105.8,12.62108948]
[1768909155357,9.32278747,3106.6,3105.8,12.62108948]
[1768909155527,0.532,3106.5,3105.8,12.62108948]
[1768909156562,0.001,3106.6,3105.8,12.62108948]
[1768909156762,0.001,3106.6,3105.9,1.26230895]
[1768909157058,0.001,3106.6,3106.1,12.61828908]
[1768909158959,8.18273465,3106.6,3106.1,12.61828908]
[1768909160973,8.18273465,3106.6,3105.9,12.61828908]
[1768909164653,8.18273465,3106.6,3106.0,11.90334809]
[1768909164852,0.533,3106.6,3106.0,11.90334809]
[1768909165066,0.533,3106.6,3106.0,13.7379054]
[1768909167469,0.533,3106.6,3106.1,11.90334809]
[1768909169793,0.001,3106.6,3106.1,11.90334809]
[1768909170996,8.18273465,3106.6,3106.1,11.90334809]
[1768909172493,0.532,3106.7,3105.8,3.22252661]
[1768909172494,0.532,3106.9,3106.0,11.90334809]
[1768909172693,8.71472465,3106.9,3106.0,11.90334809]
[1768909173194,8.18272465,3106.8,3106.0,11.90334809]
[1768909174395,0.001,3106.3,3106.0,11.90334809]
[1768909175265,0.001,3106.3,3105.8,11.90614849]
[1768909175467,8.18372465,3106.3,3105.8,13.4721569]
[1768909175895,0.001,3106.3,3105.8,13.4721569]
[1768909176196,0.001,3106.3,3105.9,11.90334809]
[1768909178596,8.18272465,3106.9,3106.0,11.90334809]
[1768909178795,8.71571465,3106.8,3106.0,11.90334809]
[1768909178997,9.58728612,3106.8,3106.0,11.90334809]
[1768909184803,0.532,3106.7,3106.0,11.90334809]
[1768909185005,8.71571465,3106.7,3106.0,11.90334809]
[1768909185691,8.18371465,3106.5,3105.8,0.0028004]
[1768909185891,8.18371465,3106.3,3105.8,0.0028004]
[1768909186102,8.18371465,3106.3,3105.8,11.81228962]
[1768909186502,8.18371465,3106.3,3105.9,0.002]
[1768909190016,8.71571465,3106.3,3105.9,0.002]
[1768909195315,8.71571465,3106.3,3105.9,11.78606239]
[1768909195625,0.532,3106.3,3105.9,11.78606239]
[1768909195793,8.18371465,3106.5,3105.9,11.78606239]
[1768909195994,0.532,3106.5,3105.9,11.78606239]
[1768909196696,1.40357147,3106.8,3105.9,13.28713706]
[1768909197025,0.532,3106.8,3105.9,13.28713706]
[1768909197253,0.532,3106.8,3106.1,11.78406239]
[1768909198607,8.18371465,3107.0,3106.1,11.78406239]
[1768909198839,0.532,3106.9,3106.1,11.78406239]
[1768909199044,0.532,3106.9,3106.2,0.002]
[1768909199208,0.87157147,3106.8,3106.3,11.78406239]
[1768909199410,8.71571465,3106.9,3106.3,11.78406239]
[1768909200944,8.18371465,3106.8,3106.2,0.002]
[1768909203619,8.18371465,3106.8,3106.2,11.78606239]
[1768909204249,8.18371465,3106.7,3106.2,0.002]
[1768909204543,9.05528612,3106.7,3106.2,0.002]
[1768909204847,9.05528612,3106.7,3106.0,11.78406239]